lending/lending_fUSD_20240705
["ID","MTS","AMOUNT","RATE_DAILY","PERIOD"]
[331256688,1720165158579,227.17477303,0.00011199,2]
[331256689,1720165185862,155.0,0.00011199,2]
[331256690,1720165212216,25000.0,0.00031599,30]
[331256691,1720165252520,25000.0,0.00031599,30]
[331256693,1720165293184,25000.0,0.00031599,30]
[331256695,1720165344904,25000.0,0.00031593,30]
[331256697,1720165432757,25000.0,0.00031593,30]
[331256698,1720165467201,25000.0,0.00031593,30]
[331256702,1720165534617,25000.0,0.00031593,30]
[331256703,1720165563262,155.0,0.00011199,2]
[331256705,1720165585198,25000.0,0.00031593,30]
[331256710,1720165637292,25000.0,0.00031593,30]
[331256727,1720165705167,25000.0,0.00031593,30]
[331256739,1720165757597,227.17477303,0.00011199,2]
[331256744,1720165766701,25000.0,0.00031593,30]
[331256747,1720165769893,-3237.70033184,0.000118,2]
[331256751,1720165783867,200.0,0.00025,60]
[331256752,1720165826319,25000.0,0.00031593,30]
[331256773,1720165835716,-222.86757636,0.000118,2]
[331256774,1720165835885,-150.0,0.00013999,2]
[331256775,1720165835901,-300.0,0.00013999,2]
[331256776,1720165835912,-303634.52025752,0.00014,2]
[331256789,1720165838323,-13807.46081107,0.00014,2]
[331256792,1720165838602,-2396.30781176,0.00014,2]
[331256793,1720165838614,-793.11864812,0.00014,2]
[331256969,1720165840769,-2535.16813099,0.00014,2]
[331256992,1720165840987,-43521.40706027,0.00014,2]
[331256994,1720165841000,-989.22878096,0.00014,2]
[331256996,1720165841014,-952.47687904,0.00014,2]
[331257242,1720165843399,-138753.5013168,0.00014,2]
[331257244,1720165843412,-1432.72014141,0.000141,2]
[331257246,1720165843421,-198.55456855,0.000143,2]
[331257248,1720165843431,-227.17477303,0.00014303,2]
[331257250,1720165843440,-856.85603232,0.00014937,2]
[331257252,1720165843450,-4522.17320379,0.00014937,2]
[331257254,1720165843460,-1399.1,0.00014943,2]
[331257256,1720165843472,-497.49,0.00014943,2]
[331257258,1720165843483,-150.0,0.00014959,2]
[331257260,1720165843492,-3868.99,0.0001499,2]
[331257262,1720165843502,-1415.52,0.0001499,2]
[331257264,1720165843512,-499.99,0.0001499,2]
[331257266,1720165843522,-200.41764913,0.0001499,2]
[331257268,1720165843532,-280.6834284,0.00014999,2]
[331257270,1720165843541,-500.0,0.00014999,2]
[331257272,1720165843550,-500.0,0.00014999,2]
[331257274,1720165843560,-464.85503221,0.00014999,2]
[331257276,1720165843569,-162.76167024,0.00014999,2]
[331257278,1720165843579,-306346.22573691,0.00015,2]
[331257280,1720165843590,-336.09703556,0.00015,2]
[331257285,1720165843625,-460.9307032,0.00015,2]
[331257407,1720165844780,-672.32,0.00015,2]
[331257417,1720165844866,-430.57963803,0.00015,2]
[331257435,1720165846781,-486.146,0.00015,2]
[331257439,1720165891996,25000.0,0.00031593,30]
[331257454,1720165947122,25000.0,0.00031593,30]
[331257455,1720165959036,160.0,0.00031593,30]
[331257456,1720165983665,292.9447,0.000117,2]
[331257458,1720166015841,6657.58541214,0.00031593,30]
[331257495,1720167032511,-380.0,0.000139,2]
[331257498,1720167032523,-206.56,0.000139,2]
[331257500,1720167032533,-263.02463046,0.00014314,2]
[331257502,1720167032544,-3192.04339954,0.00014314,2]
[331257504,1720167032553,-200.0,0.00014792,2]
[331257506,1720167032564,-900.0,0.000148,5]
[331257508,1720167032578,-300.0,0.00014899,2]
[331257510,1720167032588,-150.18290234,0.000149,2]
[331257512,1720167032598,-10069.24207422,0.000149,2]
[331257514,1720167032608,-174.01036978,0.000149,2]
[331257516,1720167032617,-164.76419081,0.000149,2]
[331257518,1720167032627,-1900.0,0.000149,5]
[331257520,1720167032638,-158.84365483,0.000149,2]
[331257522,1720167032648,-1100.29767863,0.000149,2]
[331257542,1720167036568,-597.34227907,0.00014777,2]
[331257543,1720167036581,-10.17772093,0.00014777,2]
[331257544,1720167036592,-551.10934516,0.000149,2]
[331257545,1720167036602,-220.0,0.00014904,3]
[331257546,1720167036611,-181.40672795,0.0001499,2]
[331257547,1720167036621,-178.44393283,0.00014999,2]
[331257548,1720167036846,-2.40236744,0.00014999,2]
[331257549,1720167036856,-1997.59763256,0.00015,2]
[331257550,1720167036868,-1069.50759817,0.00015,2]
[331257551,1720167036880,-57465.69350695,0.00015,2]
[331257552,1720167036894,-12411.84652715,0.00015,2]
[331257553,1720167036908,-854.82014811,0.00015,2]
[331257554,1720167036921,-3845.54217787,0.00015,2]
[331257555,1720167036933,-1623.28971584,0.00015,2]
[331257556,1720167036945,-487.8221344,0.00015,2]
[331257557,1720167036957,-13501.65778264,0.00015,2]
[331257566,1720167038872,-315.40240206,0.00015,2]
[331257913,1720167054740,-1270.89616337,0.00015,2]
[331257914,1720167055107,-271.69,0.00015,2]
[331257915,1720167055119,-30464.27433377,0.00015,2]
[331257916,1720167055131,-255730.64406553,0.00015,2]
[331257917,1720167055144,-1405.63258024,0.00015,2]
[331257918,1720167055197,-485.49,0.00015,2]
[331257919,1720167055230,-84084.90840419,0.00015,2]
[331257920,1720167055696,-578.87,0.0001499,3]
[331257921,1720167055706,-423.67666497,0.00014999,2]
[331257922,1720167055715,-46723.1994158,0.00015,2]
[331257923,1720167056727,-100176.35846891,0.00015,2]
[331257924,1720167056741,-132959.24105689,0.00015,2]
[331257925,1720167056935,-179204.5167123,0.00015,2]
[331257926,1720167056947,-544.91766,0.00015,2]
[331257927,1720167057432,-441.26500001,0.00015,2]
[331257934,1720167555106,-160.0,0.00031597,30]
[331257935,1720167606019,-192.25,0.00018849,30]
[331257936,1720167606098,-5400.0,0.00022,30]
[331257937,1720167606152,-192.25,0.00023831,30]
[331257938,1720167606188,-668.65372127,0.00025,30]
[331257939,1720167606215,-1900.0,0.00025,30]
[331257940,1720167606245,-1000.0,0.00025753,30]
[331257941,1720167606274,-408.98480513,0.00026027,32]
[331257942,1720167606308,-200.26464813,0.0002736,120]
[331257943,1720167606334,-293.13094844,0.0002739,30]
[331257944,1720167606361,-200.0,0.00027397,60]
[331257945,1720167606392,-989.79109828,0.00028,120]
[331257946,1720167606419,-313.67804188,0.00028297,120]
[331257947,1720167606450,-192.25,0.00028812,30]
[331257948,1720167606479,-900.0,0.00029,30]
[331257949,1720167606507,-406.35266225,0.00029425,30]
[331257950,1720167607222,-406.35266225,0.00029534,30]
[331257951,1720167607627,-406.35266225,0.00029671,30]
[331257952,1720167607656,-406.35266225,0.00029781,30]
[331257953,1720167607684,-406.35266225,0.00029918,30]
[331257954,1720167607713,-26681.30550745,0.0003,30]
[331257955,1720167607742,-5000.0,0.0003,30]
[331257956,1720167607767,-594.06967442,0.0003,30]
[331257957,1720167607792,-900.0,0.0003,31]
[331257958,1720167607818,-1020.0,0.0003,120]
[331257959,1720167608286,-5096.16201995,0.0003,120]
[331257960,1720167608312,-980.72314212,0.0003,30]
[331257961,1720167608338,-406.35266225,0.00030027,30]
[331257962,1720167608363,-2180.85272272,0.00030136,30]
[331257963,1720167608387,-200.0,0.00030137,60]
[331257964,1720167608411,-406.35266225,0.00030164,30]
[331257965,1720167608437,-150.0,0.00030253,120]
[331257966,1720167608461,-406.35266225,0.00030274,30]
[331257967,1720167608492,-406.35266225,0.00030411,30]
[331257968,1720167608718,-406.35266225,0.00030548,30]
[331257969,1720167608751,-548.0,0.00030613,30]
[331257970,1720167608776,-406.35266225,0.00030658,30]
[331257971,1720167608803,-406.35266225,0.00030795,30]
[331257972,1720167608827,-250.0,0.000308,30]
[331257973,1720167608853,-406.35266225,0.00030904,30]
[331257974,1720167608878,-1000.0,0.00030986,30]
[331257975,1720167608903,-1028.24800767,0.00031,30]
[331257976,1720167609357,-1278.24800767,0.00031,30]
[331257977,1720167609383,-900.0,0.00031,32]
[331257978,1720167609408,-1250.0,0.00031,30]
[331257979,1720167609433,-164.0,0.00031,30]
[331257980,1720167609457,-164.0,0.00031,30]
[331257981,1720167609484,-164.2420682,0.00031,30]
[331257982,1720167609508,-18354.73174091,0.00031,30]
[331257983,1720167609739,-462.87377434,0.00031,30]
[331257984,1720167609766,-500.0,0.00031,120]
[331257985,1720167609793,-10000.0,0.00031,30]
[331257986,1720167609819,-406.35266225,0.00031041,30]
[331257987,1720167609845,-406.35266225,0.00031151,30]
[331257988,1720167609872,-551.08031736,0.000314,30]
[331257989,1720167609897,-5086.9080867,0.000314,60]
[331257990,1720167609922,-202.50234692,0.000315,120]
[331257991,1720167609947,-1111.12429697,0.000315,30]
[331257992,1720167609973,-500.0,0.000315,120]
[331257993,1720167609998,-6000.0,0.00031584,30]
[331257994,1720167610022,-1185.74717388,0.00031593,60]
[331257995,1720167610046,-4295.46516891,0.00031593,30]
[331257996,1720167610082,-500.7,0.00031599,30]
[331257997,1720167610107,-155.45766683,0.000316,30]
[331257998,1720167610136,-1000.0,0.00032,120]
[331257999,1720167610161,-900.0,0.00032,33]
[331258000,1720167610186,-1116.0,0.00032,120]
[331258001,1720167610211,-200.0,0.00032,120]
[331258002,1720167610239,-150.0,0.00032044,120]
[331258003,1720167610264,-400.0,0.00032074,120]
[331258004,1720167610292,-150.0,0.00032422,120]
[331258005,1720167610317,-1000.0,0.000325,120]
[331258006,1720167610343,-150.0,0.00032581,120]
[331258007,1720167610369,-577.62,0.00032876,120]
[331258008,1720167610394,-577.62,0.00032876,120]
[331258009,1720167610419,-577.62,0.00032876,120]
[331258010,1720167610443,-577.62,0.00032876,120]
[331258011,1720167610467,-577.62,0.00032876,120]
[331258012,1720167610497,-577.62,0.00032876,120]
[331258013,1720167610522,-577.62,0.00032876,120]
[331258014,1720167610546,-577.62,0.00032876,120]
[331258015,1720167610573,-577.62,0.00032876,120]
[331258016,1720167610598,-577.62,0.00032876,120]
[331258017,1720167610622,-577.62,0.00032876,120]
[331258018,1720167610887,-577.62,0.00032876,120]
[331258019,1720167610912,-577.62,0.00032876,120]
[331258020,1720167610936,-577.62,0.00032876,120]
[331258021,1720167610960,-577.62,0.00032876,120]
[331258022,1720167610984,-577.62,0.00032876,120]
[331258023,1720167611008,-577.62,0.00032876,120]
[331258024,1720167611032,-577.62,0.00032876,120]
[331258025,1720167611058,-577.62,0.00032876,120]
[331258026,1720167611082,-577.62,0.00032876,120]
[331258027,1720167611108,-577.62,0.00032876,120]
[331258028,1720167611136,-577.62,0.00032876,120]
[331258029,1720167611160,-577.62,0.00032876,120]
[331258030,1720167611186,-577.65732391,0.00032876,120]
[331258031,1720167611212,-200.0,0.00032877,60]
[331258032,1720167611239,-1000.0,0.00033,120]
[331258033,1720167611263,-1533.8,0.00033,120]
[331258034,1720167611288,-914.99,0.00033151,120]
[331258035,1720167611312,-1010.87,0.00033151,120]
[331258036,1720167611339,-400.0,0.00033489,120]
[331258037,1720167611364,-1000.0,0.000335,120]
[331258038,1720167611391,-152.45,0.000335,31]
[331258039,1720167611418,-152.45,0.000335,31]
[331258040,1720167611444,-152.45,0.000335,31]
[331258041,1720167611471,-152.45,0.000335,31]
[331258042,1720167611501,-152.45,0.000335,31]
[331258043,1720167611531,-152.45,0.000335,31]
[331258044,1720167611557,-152.45,0.000335,31]
[331258045,1720167611585,-152.45,0.000335,31]
[331258046,1720167611615,-152.45,0.000335,31]
[331258047,1720167611642,-152.45,0.000335,31]
[331258048,1720167611672,-152.45,0.000335,31]
[331258049,1720167611700,-152.45,0.000335,31]
[331258050,1720167611728,-554.0,0.00033674,30]
[331258051,1720167611753,-192.25,0.00033793,30]
[331258052,1720167611781,-1000.0,0.00034,120]
[331258053,1720167611807,-1000.0,0.00034,120]
[331258054,1720167611833,-1000.0,0.000345,120]
[331258055,1720167611859,-150.0,0.00034595,120]
[331258056,1720167611884,-150.0,0.0003465,120]
[331258057,1720167611910,-152.45,0.000347,31]
[331258058,1720167611936,-152.45,0.000347,31]
[331258059,1720167611964,-152.45,0.000347,31]
[331258060,1720167611990,-152.45,0.000347,31]
[331258061,1720167612018,-152.45,0.000347,31]
[331258062,1720167612044,-152.45,0.000347,31]
[331258063,1720167612071,-152.45,0.000347,31]
[331258064,1720167612098,-152.45,0.000347,31]
[331258065,1720167612130,-152.45,0.000347,31]
[331258066,1720167612156,-152.45,0.000347,31]
[331258067,1720167612182,-152.45,0.000347,31]
[331258068,1720167612207,-152.45,0.000347,31]
[331258069,1720167612230,-400.0,0.00034904,120]
[331258070,1720167612482,-777.57551817,0.00035,30]
[331258071,1720167612507,-1439.90013748,0.00035,30]
[331258072,1720167612533,-1000.0,0.00035,120]
[331258073,1720167612558,-200.0,0.00035,60]
[331258074,1720167612587,-150.0,0.00035145,120]
[331258075,1720167612614,-200.0,0.00035616,60]
[331258076,1720167612640,-152.45,0.000358,31]
[331258077,1720167612669,-152.45,0.000358,31]
[331258078,1720167612697,-152.45,0.000358,31]
[331258079,1720167612724,-152.45,0.000358,31]
[331258080,1720167612751,-152.45,0.000358,31]
[331258081,1720167612780,-152.45,0.000358,31]
[331258082,1720167612807,-152.45,0.000358,31]
[331258083,1720167612832,-152.45,0.000358,31]
[331258084,1720167612862,-152.45,0.000358,31]
[331258085,1720167613052,-152.45,0.000358,31]
[331258086,1720167613080,-152.45,0.000358,31]
[331258087,1720167613109,-152.45,0.000358,31]
[331258088,1720167613144,-150.0,0.00035889,120]
[331258089,1720167613171,-1000.0,0.00036,120]
[331258090,1720167613196,-1000.0,0.00036,120]
[331258091,1720167613224,-150.0,0.00036003,120]
[331258092,1720167613248,-400.0,0.00036319,120]
[331258093,1720167613273,-669.5143749,0.000365,120]
[331258094,1720167613298,-280.4189102,0.00037,120]
[331258095,1720167613325,-152.45,0.00037,31]
[331258096,1720167613352,-152.45,0.00037,31]
[331258097,1720167613379,-152.45,0.00037,31]
[331258098,1720167613404,-152.45,0.00037,31]
[331258099,1720167613431,-152.45,0.00037,31]
[331258100,1720167613458,-152.45,0.00037,31]
[331258101,1720167613487,-152.45,0.00037,31]
[331258102,1720167613513,-152.45,0.00037,31]
[331258103,1720167613539,-152.45,0.00037,31]
[331258104,1720167613566,-152.45,0.00037,31]
[331258105,1720167613595,-152.45,0.00037,31]
[331258106,1720167613623,-152.45,0.00037,31]
[331258107,1720167613648,-1000.0,0.00037248,31]
[331258108,1720167613673,-400.0,0.00037734,120]
[331258109,1720167613697,-156.86637705,0.00037999,120]
[331258110,1720167613722,-500.0,0.00038,30]
[331258111,1720167613746,-543.03021466,0.00038,30]
[331258112,1720167613771,-307.11109778,0.00038,30]
[331258113,1720167613794,-667.1626747,0.00038,120]
[331258114,1720167613820,-1000.0,0.00038,120]
[331258115,1720167613845,-607.37628734,0.00038,120]
[331258116,1720167613869,-2015.07058024,0.00038,120]
[331258117,1720167613896,-152.45,0.000382,31]
[331258118,1720167613924,-152.45,0.000382,31]
[331258119,1720167613952,-152.45,0.000382,31]
[331258120,1720167613980,-152.45,0.000382,31]
[331258121,1720167614007,-152.45,0.000382,31]
[331258122,1720167614034,-152.45,0.000382,31]
[331258123,1720167614061,-152.45,0.000382,31]
[331258124,1720167614088,-152.45,0.000382,31]
[331258125,1720167614116,-152.45,0.000382,31]
[331258126,1720167614147,-152.45,0.000382,31]
[331258127,1720167614175,-152.45,0.000382,31]
[331258128,1720167614202,-152.45,0.000382,31]
[331258129,1720167614231,-152.45,0.000382,31]
[331258130,1720167614259,-152.45,0.000382,31]
[331258131,1720167614286,-152.45,0.000382,31]
[331258132,1720167614311,-276.13664505,0.00038356,60]
[331258133,1720167614336,-619.4966142,0.000387,30]
[331258134,1720167614362,-192.25,0.00038775,30]
[331258135,1720167614387,-1047.922,0.000388,30]
[331258136,1720167614413,-150.0,0.00038851,120]
[331258137,1720167614439,-1409.34436775,0.000389,30]
[331258138,1720167614465,-2940.73644534,0.00039,120]
[331258139,1720167614491,-3728.64802218,0.00039,120]
[331258140,1720167614519,-500.0,0.00039,120]
[331258141,1720167614542,-375.68691621,0.00039,120]
[331258142,1720167614569,-2600.3,0.000394,30]
[331258143,1720167614595,-495.9598386,0.000395,30]
[331258144,1720167614620,-2311.51061037,0.000397,60]
[331258145,1720167614644,-409.59074363,0.00039986,90]
[331258146,1720167614671,-250.0,0.00039999,30]
[331258147,1720167614699,-50000.0,0.0004,30]
[331258148,1720167614728,-50000.0,0.0004,40]
[331258149,1720167614753,-3190.63923269,0.0004,30]
[331258150,1720167615016,-197.61491513,0.0004,120]
[331258151,1720167615233,-477.12749073,0.0004,30]
[331258152,1720167615258,-925.17097077,0.0004,120]
[331258153,1720167615284,-418.69917158,0.0004,120]
[331258154,1720167615309,-160.00520593,0.0004,30]
[331258155,1720167615335,-370.91696703,0.0004,30]
[331258156,1720167615360,-2824.04423472,0.0004,60]
[331258157,1720167615386,-296.26699894,0.0004,30]
[331258158,1720167615412,-240.16706273,0.0004,30]
[331258159,1720167615437,-727.28821667,0.0004,120]
[331258160,1720167615462,-1300.0,0.0004,120]
[331258161,1720167615488,-201.23094436,0.0004,120]
[331258162,1720167615514,-1000.0,0.0004,120]
[331258163,1720167615541,-337.52391897,0.0004,30]
[331258164,1720167615568,-300.0,0.0004,30]
[331258165,1720167615597,-300.0,0.0004,30]
[331258166,1720167615624,-300.0,0.0004,30]
[331258167,1720167615650,-300.0,0.0004,30]
[331258168,1720167615675,-300.0,0.0004,30]
[331258169,1720167615700,-300.0,0.0004,30]
[331258170,1720167615724,-300.0,0.0004,30]
[331258171,1720167615750,-300.0,0.0004,30]
[331258172,1720167615775,-300.0,0.0004,30]
[331258173,1720167615801,-300.0,0.0004,30]
[331258174,1720167615826,-300.0,0.0004,30]
[331258175,1720167615851,-300.0,0.0004,30]
[331258176,1720167615877,-300.0,0.0004,30]
[331258177,1720167615903,-200.0,0.0004,30]
[331258178,1720167615928,-200.0,0.0004,30]
[331258179,1720167615955,-607.37628734,0.0004,120]
[331258180,1720167615983,-214.0,0.0004,120]
[331258181,1720167616010,-151.0,0.0004,120]
[331258182,1720167616035,-1107.99,0.0004,120]
[331258183,1720167616059,-183.84444444,0.0004,120]
[331258184,1720167616084,-200.0,0.0004,120]
[331258185,1720167616110,-1477.72968881,0.0004,120]
[331258186,1720167616145,-2362.94,0.0004,120]
[331258187,1720167616172,-349.24,0.0004,120]
[331258188,1720167616201,-371.28367675,0.0004025,120]
[331258189,1720167616376,-2558.0,0.000407,81]
[331258190,1720167616404,-183.84444444,0.00040712,120]
[331258191,1720167616431,-934.356231,0.000408,30]
[331258192,1720167616457,-2772.77227189,0.00040888,60]
[331258193,1720167616488,-3114.4739807,0.000409,120]
[331258194,1720167616516,-3114.4739807,0.000409,120]
[331258195,1720167616779,-3114.4739807,0.000409,120]
[331258196,1720167616807,-3114.4739807,0.000409,120]
[331258197,1720167616836,-3114.4739807,0.000409,120]
[331258198,1720167616863,-3114.4739807,0.000409,120]
[331258199,1720167616890,-3114.4739807,0.000409,120]
[331258200,1720167616915,-3114.4739807,0.000409,120]
[331258201,1720167616942,-3114.4739807,0.000409,120]
[331258202,1720167616968,-3114.4739807,0.000409,120]
[331258203,1720167616996,-3114.4739807,0.000409,120]
[331258204,1720167617022,-3114.4739807,0.000409,120]
[331258205,1720167617049,-50000.0,0.00041,31]
[331258206,1720167617076,-50000.0,0.00041,41]
[331258207,1720167617101,-746.22995036,0.00041,60]
[331258208,1720167617133,-500.0,0.00041,120]
[331258209,1720167617158,-10050.91013937,0.00041,30]
[331258210,1720167617183,-2103.72,0.00041,85]
[331258211,1720167617207,-2477.55994657,0.00041,30]
[331258212,1720167617234,-152.0,0.00041041,31]
[331258213,1720167617258,-510.0,0.00041095,120]
[331258214,1720167617284,-151.0,0.00041233,120]
[331258215,1720167617313,-510.0,0.00041369,120]
[331258216,1720167617338,-183.84444444,0.00041425,120]
[331258217,1720167617362,-237.1,0.000416,120]
[331258218,1720167617387,-510.0,0.00041643,120]
[331258219,1720167617413,-397.38172381,0.000418,120]
[331258220,1720167617438,-197.0,0.00041857,30]
[331258221,1720167617465,-151.0,0.00041857,30]
[331258222,1720167617492,-151.0,0.00041857,30]
[331258223,1720167617521,-151.0,0.00041857,30]
[331258224,1720167617545,-151.0,0.00041857,30]
[331258225,1720167617573,-151.0,0.00041857,30]
[331258226,1720167617596,-11187.0,0.000419,120]
[331258227,1720167617620,-151.0,0.00041908,30]
[331258228,1720167617645,-510.0,0.00041917,120]
[331258229,1720167617673,-150.0,0.00041941,120]
[331258230,1720167617700,-50000.0,0.00042,32]
[331258231,1720167617729,-50000.0,0.00042,42]
[331258232,1720167618003,-470.01250465,0.00042,120]
[331258233,1720167618028,-1015.70682897,0.00042,120]
[331258234,1720167618052,-597.97506647,0.00042,60]
[331258235,1720167618076,-1200.0,0.00042,120]
[331258236,1720167618100,-1000.0,0.00042,120]
[331258237,1720167618128,-3000.0,0.00042,90]
[331258238,1720167618152,-79176.32655053,0.00042,120]
[331258239,1720167618176,-719.45909523,0.00042,120]
[331258240,1720167618200,-462.6228344,0.00042019,30]
[331258241,1720167618224,-152.59839612,0.00042019,30]
[331258242,1720167618251,-150.0,0.00042019,30]
[331258243,1720167618275,-150.0,0.00042019,30]
[331258244,1720167618299,-199.74954741,0.00042019,30]
[331258245,1720167618323,-150.0,0.00042019,30]
[331258246,1720167618347,-150.0,0.00042019,30]
[331258247,1720167618370,-150.0,0.00042019,30]
[331258248,1720167618396,-150.0,0.00042019,30]
[331258249,1720167618420,-150.0,0.00042019,30]
[331258250,1720167618444,-150.85580729,0.00042019,30]
[331258251,1720167618468,-462.6228344,0.00042066,30]
[331258252,1720167618494,-152.59839612,0.00042066,30]
[331258253,1720167618518,-199.74954741,0.00042066,30]
[331258254,1720167618792,-462.6228344,0.00042114,30]
[331258255,1720167618818,-152.59839612,0.00042114,30]
[331258256,1720167618842,-199.74954741,0.00042114,30]
[331258257,1720167618867,-183.84444444,0.00042137,120]
[331258258,1720167618891,-462.6228344,0.00042161,30]
[331258259,1720167618916,-152.59839612,0.00042161,30]
[331258260,1720167618941,-199.74954741,0.00042161,30]
[331258261,1720167618966,-150.0,0.00042175,30]
[331258262,1720167618992,-510.0,0.00042191,120]
[331258263,1720167619017,-462.6228344,0.00042208,30]
[331258264,1720167619042,-152.59839612,0.00042208,30]
[331258265,1720167619068,-199.74954741,0.00042208,30]
[331258266,1720167619095,-462.6228344,0.00042255,30]
[331258267,1720167619122,-152.59839612,0.00042255,30]
[331258268,1720167619148,-199.74954741,0.00042255,30]
[331258269,1720167619278,-150.0,0.00042265,30]
[331258270,1720167619303,-462.6228344,0.00042302,30]
[331258271,1720167619327,-152.59839612,0.00042302,30]
[331258272,1720167619351,-199.74954741,0.00042302,30]
[331258273,1720167619374,-150.0,0.0004233,30]
[331258274,1720167619399,-462.6228344,0.00042349,30]
[331258275,1720167619423,-152.59839612,0.00042349,30]
[331258276,1720167619447,-199.74954741,0.00042349,30]
[331258277,1720167619470,-462.6228344,0.00042396,30]
[331258278,1720167619495,-152.59839612,0.00042396,30]
[331258279,1720167619748,-199.74954741,0.00042396,30]
[331258280,1720167619774,-462.6228344,0.00042444,30]
[331258281,1720167619798,-152.59839612,0.00042444,30]
[331258282,1720167619823,-199.74954741,0.00042444,30]
[331258283,1720167619847,-510.0,0.00042465,120]
[331258284,1720167619872,-2945.59,0.00042465,30]
[331258285,1720167619897,-151.0,0.00042466,120]
[331258286,1720167619922,-150.0,0.00042486,30]
[331258287,1720167619946,-462.6228344,0.00042491,30]
[331258288,1720167619971,-152.59839612,0.00042491,30]
[331258289,1720167619998,-199.74954741,0.00042491,30]
[331258290,1720167620023,-3225.64,0.000425,120]
[331258291,1720167620047,-487.08,0.000425,120]
[331258292,1720167620071,-354.57,0.000425,120]
[331258293,1720167620470,-150.0,0.00042511,30]
[331258294,1720167620498,-462.6228344,0.00042538,30]
[331258295,1720167620528,-152.59839612,0.00042538,30]
[331258296,1720167620553,-199.74954741,0.00042538,30]
[331258297,1720167620580,-150.0,0.00042578,120]
[331258298,1720167620604,-462.6228344,0.00042585,30]
[331258299,1720167620628,-152.59839612,0.00042585,30]
[331258300,1720167620652,-199.74954741,0.00042585,30]
[331258301,1720167620679,-462.6228344,0.00042632,30]
[331258302,1720167620703,-152.59839612,0.00042632,30]
[331258303,1720167620728,-199.74954741,0.00042632,30]
[331258304,1720167620869,-150.0,0.00042642,30]
[331258305,1720167620895,-150.0,0.00042649,120]
[331258306,1720167620921,-462.6228344,0.00042679,30]
[331258307,1720167620944,-152.59839612,0.00042679,30]
[331258308,1720167620970,-199.74954741,0.00042679,30]
[331258309,1720167620996,-462.6228344,0.00042727,30]
[331258310,1720167621022,-152.59839612,0.00042727,30]
[331258311,1720167621046,-199.74954741,0.00042727,30]
[331258312,1720167621070,-510.0,0.00042739,120]
[331258313,1720167621094,-150.0,0.00042756,30]
[331258314,1720167621120,-462.6228344,0.00042774,30]
[331258315,1720167621147,-152.59839612,0.00042774,30]
[331258316,1720167621172,-199.74954741,0.00042774,30]
[331258317,1720167621196,-150.0,0.00042797,30]
[331258318,1720167621220,-462.6228344,0.00042821,30]
[331258319,1720167621247,-152.59839612,0.00042821,30]
[331258320,1720167621271,-199.74954741,0.00042821,30]
[331258321,1720167621298,-183.84444444,0.00042849,120]
[331258322,1720167621324,-462.6228344,0.00042868,30]
[331258323,1720167621350,-152.59839612,0.00042868,30]
[331258324,1720167621375,-199.74954741,0.00042868,30]
[331258325,1720167621399,-251.16330192,0.0004288,120]
[331258326,1720167621423,-462.6228344,0.00042915,30]
[331258327,1720167621448,-152.59839612,0.00042915,30]
[331258328,1720167621472,-199.74954741,0.00042915,30]
[331258329,1720167621506,-152.0,0.00042923,31]